bitfinex/quotes_BTCUSD_20250508
["timestamp","ask_amount","ask_price","bid_price","bid_amount"]
[1746703965239,0.21099036,99531.0,99530.0,6.87674561]
[1746703965642,0.21098555,99533.0,99531.0,0.34]
[1746703965871,0.2009404,99532.0,99531.0,8.585564]
[1746703966031,0.21098555,99533.0,99532.0,0.00433779]
[1746703966231,0.21098555,99533.0,99532.0,8.3744]
[1746703966431,0.21098555,99533.0,99532.0,8.21385988]
[1746703966633,0.21098555,99533.0,99532.0,8.08315288]
[1746703966875,0.21498555,99533.0,99532.0,7.74434088]
[1746703967574,0.21498555,99533.0,99532.0,7.48393088]
[1746703967773,0.21498555,99533.0,99532.0,7.35724588]
[1746703967774,0.21898555,99533.0,99532.0,7.35724588]
[1746703967972,0.20893864,99533.0,99532.0,7.35724588]
[1746703968384,0.20893864,99533.0,99532.0,7.36666518]
[1746703968558,0.21898555,99533.0,99532.0,7.36666518]
[1746703968760,0.21498555,99533.0,99532.0,7.36666518]
[1746703968975,0.21698555,99533.0,99532.0,7.36766518]
[1746703969327,0.21698555,99533.0,99532.0,7.29829118]
[1746703969704,0.21523555,99533.0,99532.0,7.29829118]
[1746703969905,0.21348555,99533.0,99532.0,7.29829118]
[1746703970607,0.72348555,99533.0,99532.0,7.29829118]
[1746703971383,0.516,99533.0,99532.0,7.29829118]
[1746703971628,0.516,99533.0,99532.0,7.33009118]
[1746703972213,0.516,99533.0,99532.0,7.53103158]
[1746703972412,0.516,99533.0,99532.0,0.58850058]
[1746703972640,0.516,99533.0,99532.0,9.63529658]
[1746703973334,0.516,99533.0,99532.0,9.29529658]
[1746703973899,0.516,99533.0,99532.0,9.27999658]
[1746703974182,0.516,99533.0,99532.0,9.26349658]
[1746703974746,0.516,99533.0,99532.0,8.79197658]
[1746703975296,0.509,99533.0,99532.0,8.79197658]
[1746703977700,0.509,99533.0,99532.0,8.75779158]
[1746703978220,0.509,99533.0,99532.0,8.52655858]
[1746703979731,0.509,99533.0,99532.0,8.51549958]
[1746703981372,0.509,99533.0,99532.0,8.50142458]
[1746703981951,0.509,99533.0,99532.0,8.84142458]
[1746703982124,0.502,99533.0,99532.0,7.80787258]
[1746703982521,0.502,99533.0,99532.0,7.60693218]
[1746703982862,0.502,99533.0,99532.0,7.80787258]
[1746703983010,0.502,99533.0,99532.0,7.60693218]
[1746703983213,0.502,99533.0,99532.0,0.54728128]
[1746703983512,0.70293838,99533.0,99532.0,8.05095588]
[1746703983715,0.70293838,99533.0,99532.0,8.02984388]
[1746703983953,0.502,99533.0,99532.0,7.68799688]
[1746703984151,0.70293838,99533.0,99532.0,7.65582488]
[1746703984362,0.502,99533.0,99532.0,7.60756688]
[1746703984725,0.502,99533.0,99532.0,7.80850728]
[1746703986231,0.502,99533.0,99532.0,0.54728128]
[1746703986466,0.502,99533.0,99532.0,3.40657428]
[1746703986669,0.70293838,99533.0,99532.0,7.65582388]
[1746703986828,0.502,99533.0,99532.0,7.68799588]
[1746703987033,0.502,99533.0,99532.0,7.5104234]
[1746703988239,0.70293838,99533.0,99532.0,7.309483]
[1746703988440,0.502,99533.0,99529.0,8.70102132]
[1746703988645,0.502,99533.0,99530.0,8.26952281]
[1746703988849,0.502,99533.0,99531.0,7.977066]
[1746703989279,0.495,99533.0,99531.0,7.977066]
[1746703989434,0.2009404,99532.0,99531.0,7.6654]
[1746703989624,0.495,99533.0,99531.0,7.6654]
[1746703989849,0.496,99533.0,99532.0,0.00941971]
[1746703990211,0.69593945,99533.0,99532.0,7.65370571]
[1746703990435,0.5277,99533.0,99532.0,6.95897571]
[1746703990607,0.72863838,99533.0,99532.0,5.98979371]
[1746703991153,0.72763838,99533.0,99532.0,2.76571971]
[1746703991612,0.72963838,99533.0,99532.0,2.25501971]
[1746703991771,0.72963838,99533.0,99532.0,2.34785971]
[1746703991974,0.80997862,99533.0,99532.0,0.01041971]
[1746703992172,0.81097862,99533.0,99532.0,0.01041971]
[1746703992441,0.91164554,99533.0,99532.0,0.01041971]
[1746703996041,0.9274173,99533.0,99532.0,0.01041971]
[1746703996321,0.91164554,99533.0,99532.0,0.01041971]
[1746703996692,0.918658,99533.0,99532.0,0.001]
[1746703996854,0.917658,99533.0,99532.0,0.001]
[1746703997313,0.20094443,99530.0,99529.0,0.00941971]
[1746703997640,0.33281135,99530.0,99529.0,0.00941971]
[1746703998038,0.23214847,99528.0,99527.0,4.569e-05]
[1746703998271,0.33281539,99528.0,99527.0,4.569e-05]
[1746703998739,0.33982749,99528.0,99527.0,4.569e-05]
[1746703999187,0.33281539,99528.0,99527.0,4.569e-05]
[1746703999623,0.33281539,99528.0,99527.0,0.00104569]
[1746704000044,0.33481539,99528.0,99527.0,0.00104569]
[1746704000256,0.43548231,99528.0,99527.0,0.00104569]
[1746704000476,0.33481539,99528.0,99527.0,0.00104569]
[1746704000885,0.33481539,99528.0,99527.0,0.00204569]
[1746704001323,0.33481539,99528.0,99527.0,0.00104569]
[1746704001520,0.33581539,99528.0,99527.0,0.00504569]
[1746704001737,0.33381539,99528.0,99527.0,0.00404569]
[1746704002097,0.33481539,99528.0,99527.0,0.00804569]
[1746704008968,0.34181128,99528.0,99527.0,0.00804569]
[1746704009565,0.33481539,99528.0,99527.0,0.00804569]
[1746704013193,0.20095251,99526.0,99525.0,4.569e-05]
[1746704013373,0.33361943,99526.0,99525.0,4.569e-05]
[1746704015291,0.33461943,99526.0,99525.0,0.00404569]
[1746704015678,0.33561943,99526.0,99525.0,0.00504569]
[1746704025368,0.30361943,99526.0,99525.0,0.00504569]
[1746704025742,0.33491943,99526.0,99525.0,0.00504569]
[1746704026181,0.35362256,99526.0,99525.0,0.00504569]
[1746704026541,0.33491943,99526.0,99525.0,0.00504569]
[1746704028563,0.30361943,99526.0,99525.0,0.00504569]
[1746704028762,0.33401943,99526.0,99525.0,0.00504569]
[1746704030914,0.34401943,99526.0,99525.0,0.00504569]
[1746704032928,0.34401943,99526.0,99525.0,0.00481773]
[1746704034426,0.36271989,99526.0,99525.0,0.00481773]
[1746704035124,0.34401943,99526.0,99525.0,0.00481773]
[1746704036875,0.36272066,99526.0,99525.0,0.00481773]
[1746704037375,0.34401943,99526.0,99525.0,0.00481773]
[1746704038470,0.34311514,99526.0,99525.0,0.00481773]
[1746704038879,0.3618215,99526.0,99525.0,0.00481773]
[1746704040598,0.200996,99505.0,99502.0,0.17019116]
[1746704040804,0.200996,99505.0,99503.0,8.08545683]
[1746704040805,0.20099783,99504.0,99503.0,8.08545683]
[1746704041407,0.19399783,99504.0,99503.0,8.08545683]
[1746704041827,0.01004964,99506.0,99503.0,8.33142983]
[1746704042196,0.004,99505.0,99504.0,7.686558]
[1746704042395,0.004,99505.0,99504.0,7.69122352]
[1746704042675,0.002,99505.0,99504.0,7.69122352]
[1746704042890,0.20299492,99505.0,99504.0,7.69122352]
[1746704043595,0.002,99506.0,99504.0,7.89222046]
[1746704043742,0.20299291,99506.0,99505.0,7.90882]
[1746704043935,0.20299291,99506.0,99505.0,7.91348828]
[1746704044337,0.18767655,99506.0,99505.0,7.91348828]
[1746704044606,0.01004934,99509.0,99505.0,7.91348828]
[1746704044804,0.20099088,99507.0,99506.0,4.482362]
[1746704044952,0.20099088,99507.0,99506.0,4.48703337]
[1746704046089,0.20599088,99507.0,99506.0,4.48703337]
[1746704046415,0.20999088,99507.0,99506.0,4.48703337]
[1746704048544,0.20299088,99507.0,99506.0,4.48703337]
[1746704049937,0.20299088,99507.0,99506.0,0.00467137]
[1746704050460,0.40999203,99507.0,99504.0,7.909827]
[1746704050712,0.21904954,99507.0,99504.0,7.909827]
[1746704051058,0.01004964,99506.0,99503.0,8.042583]
[1746704051710,0.21104275,99506.0,99504.0,9.162156]
[1746704052033,0.41104142,99507.0,99505.0,9.161156]
[1746704052230,0.006,99506.0,99504.0,9.161156]
[1746704052387,0.2069929,99506.0,99504.0,9.161156]
[1746704052601,0.2039929,99506.0,99504.0,9.161156]
[1746704053003,0.2069929,99506.0,99504.0,9.162156]
[1746704053213,0.20099492,99505.0,99504.0,0.001]
[1746704053780,0.20099492,99505.0,99504.0,0.00566849]
[1746704054377,0.20099492,99505.0,99504.0,0.00466849]
[1746704054584,0.20399492,99505.0,99504.0,0.00566849]
[1746704054781,0.20699492,99505.0,99504.0,0.00566849]
[1746704055500,0.19999492,99505.0,99504.0,8.38717249]
[1746704056480,0.19999492,99505.0,99504.0,9.16682449]
[1746704058629,0.19999492,99505.0,99504.0,8.78241649]
[1746704058824,0.19999492,99505.0,99504.0,8.76431349]
[1746704059153,0.19999492,99505.0,99504.0,5.36501549]
[1746704059672,0.20999492,99505.0,99504.0,5.36501549]
[1746704063639,0.20999492,99505.0,99504.0,5.19596496]
[1746704067583,0.24119492,99505.0,99504.0,4.49945996]
[1746704069686,0.22499492,99505.0,99504.0,4.49945996]
[1746704069882,0.20999492,99505.0,99504.0,4.49945996]
[1746704073761,0.24139492,99505.0,99504.0,4.49945996]
[1746704078189,0.23985587,99505.0,99504.0,4.49945996]
[1746704081836,0.23985587,99505.0,99504.0,0.00392896]
[1746704082153,0.23985587,99505.0,99504.0,6.14133096]
[1746704082451,0.23985587,99505.0,99504.0,6.13026796]
[1746704082644,0.23985587,99505.0,99504.0,6.06590296]
[1746704086557,0.20845587,99505.0,99504.0,6.06590296]
[1746704090382,0.20845587,99505.0,99504.0,6.015903]
[1746704091949,0.23995587,99505.0,99504.0,6.015903]
[1746704092123,0.23995587,99505.0,99504.0,5.544123]
[1746704092706,0.23995587,99505.0,99503.0,0.04143376]
[1746704092907,0.23995587,99505.0,99500.0,0.002]
[1746704092908,0.201003,99501.0,99500.0,0.002]
[1746704093121,0.21104982,99503.0,99501.0,8.947674]
[1746704093313,0.20100196,99502.0,99501.0,8.98810418]
[1746704095062,0.20100196,99502.0,99501.0,6.33994518]
[1746704096127,0.20600196,99502.0,99501.0,6.33994518]
[1746704096309,0.20600196,99502.0,99501.0,0.04043018]
[1746704096664,0.20600196,99502.0,99501.0,8.947674]
[1746704097278,0.20600196,99502.0,99501.0,6.614302]
[1746704097479,0.20600196,99502.0,99501.0,6.60785323]
[1746704097649,0.19900196,99502.0,99501.0,6.60785323]
[1746704098236,0.21550196,99502.0,99501.0,6.29407123]
[1746704099218,0.19900196,99502.0,99501.0,6.29407123]
[1746704099606,0.21540196,99502.0,99501.0,6.29407123]
[1746704100491,0.23050196,99502.0,99501.0,6.29407123]
[1746704102559,0.19900196,99502.0,99501.0,6.29407123]
[1746704103388,0.19900196,99502.0,99501.0,2.02509123]
[1746704103807,0.19900196,99502.0,99501.0,8.88949923]
[1746704104011,0.19900196,99502.0,99501.0,6.79893823]
[1746704104186,0.21400196,99502.0,99501.0,6.34033423]
[1746704104595,0.20700196,99502.0,99501.0,6.34033423]
[1746704106961,0.22360196,99502.0,99501.0,6.34033423]
[1746704107717,0.22360196,99502.0,99501.0,6.13045794]
[1746704107923,0.22360196,99502.0,99501.0,6.17063824]
[1746704111791,0.21660196,99502.0,99501.0,6.17063824]
[1746704112256,0.21660196,99502.0,99501.0,6.09118824]
[1746704112662,0.21660196,99502.0,99501.0,5.89205724]
[1746704113095,0.21660196,99502.0,99501.0,5.84378324]
[1746704115857,0.21660196,99502.0,99501.0,5.79148624]
[1746704116357,0.21660196,99502.0,99501.0,5.75528024]
[1746704116534,0.21660196,99502.0,99501.0,0.04018024]
[1746704116735,0.201003,99501.0,99500.0,0.002]
[1746704116942,0.231803,99501.0,99500.0,0.002]
[1746704117807,0.233803,99501.0,99500.0,0.002]
[1746704119008,0.226803,99501.0,99500.0,0.002]
[1746704119217,0.226803,99501.0,99500.0,4.438844]
[1746704119372,0.226803,99501.0,99500.0,4.422753]
[1746704119738,0.229803,99501.0,99500.0,4.422753]
[1746704120535,0.0458,99501.0,99500.0,4.46318464]
[1746704120749,0.015,99501.0,99500.0,4.46318464]
[1746704121157,0.015,99501.0,99500.0,4.66418966]
[1746704121378,0.015,99501.0,99500.0,4.67360166]
[1746704121622,0.015,99501.0,99500.0,4.69242618]
[1746704125108,0.015,99501.0,99500.0,5.03242618]
[1746704125329,0.015,99501.0,99500.0,5.05532618]
[1746704125743,0.015,99501.0,99500.0,5.1559931]
[1746704125956,0.008,99501.0,99500.0,5.1559931]
[1746704127317,0.01,99501.0,99500.0,5.1559931]
[1746704127523,0.011,99501.0,99500.0,5.1559931]
[1746704127966,0.01,99501.0,99500.0,5.1559931]
[1746704128138,0.01,99501.0,99500.0,0.74978095]
[1746704128447,0.011,99501.0,99500.0,9.43040256]
[1746704128773,0.008,99501.0,99500.0,10.24770256]
[1746704128985,0.008,99501.0,99500.0,10.24870256]
[1746704129183,0.009,99501.0,99500.0,10.24870256]
[1746704129907,0.01,99501.0,99500.0,10.25070256]
[1746704130206,0.01,99501.0,99500.0,10.21740256]
[1746704130411,0.009,99501.0,99500.0,10.21640256]
[1746704130571,0.01,99501.0,99500.0,10.21940256]
[1746704130969,0.01,99501.0,99500.0,10.18196171]
[1746704131579,0.01,99501.0,99500.0,10.19462958]
[1746704133001,0.003,99501.0,99500.0,10.19462958]
[1746704136417,0.003,99501.0,99500.0,1.51500658]
[1746704136936,0.003,99501.0,99500.0,10.19462958]
[1746704138962,0.003,99501.0,99500.0,1.51500658]
[1746704139162,0.003,99501.0,99500.0,5.61593558]
[1746704139383,0.003,99501.0,99500.0,1.51500658]
[1746704139520,0.003,99501.0,99500.0,10.19462958]
[1746704140261,0.575388,99505.0,99504.0,0.54099694]
[1746704140417,0.575388,99505.0,99504.0,9.32128686]
[1746704140625,0.575388,99505.0,99504.0,9.77386159]
[1746704141047,0.575388,99505.0,99504.0,10.17386159]
[1746704141342,0.576388,99505.0,99504.0,10.17584392]
[1746704141976,0.576388,99505.0,99504.0,10.17684392]
[1746704146416,0.576388,99505.0,99504.0,10.18344014]
[1746704155875,0.576388,99505.0,99504.0,9.9824432]
[1746704156218,0.576388,99505.0,99504.0,10.18344014]
[1746704157003,0.576388,99505.0,99504.0,10.1813456]
[1746704159717,0.007,99505.0,99504.0,10.1813456]
[1746704160659,0.007,99505.0,99504.0,10.19588645]
[1746704160859,0.0151,99522.0,99519.0,0.54096664]
[1746704161059,0.0161,99523.0,99519.0,0.64163356]
[1746704161200,0.0161,99523.0,99519.0,9.35053901]
[1746704161401,0.0161,99523.0,99519.0,9.35994962]
[1746704161607,0.0161,99523.0,99519.0,9.75994962]
[1746704162375,0.00012868,99528.0,99525.0,0.54095453]
[1746704162694,0.00012868,99528.0,99525.0,9.23938438]
[1746704162900,0.0265,99526.0,99525.0,9.24386984]
[1746704163160,0.0265,99526.0,99525.0,9.25328045]
[1746704164850,0.0285,99526.0,99525.0,9.25927059]
[1746704165210,0.0449,99526.0,99525.0,9.25927059]
[1746704165564,0.0459,99526.0,99525.0,9.25927059]
[1746704165957,0.0459,99526.0,99525.0,9.65927059]
[1746704166368,0.013,99526.0,99525.0,9.75993751]
[1746704167320,0.01,99526.0,99525.0,9.75993751]
[1746704167648,0.013,99526.0,99525.0,10.17823751]
[1746704168011,0.013,99526.0,99525.0,10.1688269]
[1746704168320,0.013,99526.0,99525.0,10.18336775]
[1746704168829,0.012,99526.0,99525.0,10.18336775]
[1746704169053,0.012,99526.0,99525.0,10.18436775]
[1746704169344,0.005,99526.0,99525.0,1.50474475]
[1746704169545,0.005,99526.0,99525.0,10.18436775]
[1746704169752,0.005,99526.0,99525.0,10.18336775]
[1746704169908,0.005,99526.0,99525.0,10.18436775]
[1746704170104,0.003,99526.0,99525.0,10.18436775]
[1746704170611,0.003,99526.0,99525.0,10.1665609]
[1746704172181,0.0165,99546.0,99532.0,0.5409404]
[1746704172380,0.49509201,99533.0,99532.0,9.32123032]
[1746704172616,0.49509201,99533.0,99532.0,9.34601538]
[1746704173122,0.49509201,99533.0,99532.0,9.74601538]
[1746704173322,0.49609201,99533.0,99532.0,9.74601538]
[1746704173732,0.49709201,99533.0,99532.0,10.16431538]
[1746704174081,0.49687091,99533.0,99532.0,10.16431538]
[1746704174285,0.29709201,99533.0,99532.0,10.16431538]
[1746704174490,0.29609201,99533.0,99532.0,10.16431538]
[1746704174788,0.29709201,99533.0,99532.0,10.16431538]
[1746704175226,0.29609201,99533.0,99532.0,10.16431538]
[1746704176444,0.29609201,99533.0,99532.0,10.16875408]
[1746704183296,0.29609201,99533.0,99532.0,10.17814557]
[1746704183626,0.31149201,99533.0,99532.0,10.17814557]
[1746704183820,0.32689201,99533.0,99532.0,10.17814557]
[1746704185646,0.31149201,99533.0,99532.0,10.17814557]
[1746704186010,0.31149201,99533.0,99532.0,1.49852257]
[1746704186350,0.31149201,99533.0,99532.0,10.17814557]
[1746704187642,0.01008,99555.0,99544.0,0.54091617]
[1746704187848,0.00204577,99545.0,99544.0,1.07867195]
[1746704188048,0.01008,99555.0,99554.0,0.54089599]
[1746704188308,0.01012577,99555.0,99554.0,10.1488774]
[1746704188529,0.01012577,99555.0,99554.0,10.16766626]
[1746704189422,0.01012577,99555.0,99554.0,10.17529924]
[1746704190436,0.01112577,99555.0,99554.0,10.17529924]
[1746704190592,0.01212577,99555.0,99554.0,10.21594402]
[1746704191558,0.01112577,99555.0,99554.0,10.22027726]
[1746704191738,0.01212577,99555.0,99554.0,10.22622099]
[1746704192513,0.01212577,99555.0,99554.0,10.92622099]
[1746704193154,0.01112577,99555.0,99554.0,10.92622099]
[1746704193352,0.01212577,99555.0,99554.0,10.50792099]
[1746704193556,0.01212577,99555.0,99554.0,10.4985295]
[1746704195112,0.01212577,99555.0,99554.0,10.50791836]
[1746704196985,0.01212577,99555.0,99554.0,10.52245921]
[1746704198996,0.01212577,99555.0,99554.0,10.50367035]
[1746704199218,0.01212577,99555.0,99554.0,10.49428149]
[1746704199782,0.01212577,99555.0,99554.0,10.5224392]
[1746704200544,0.01212577,99555.0,99554.0,9.8224392]
[1746704200920,0.01212577,99555.0,99554.0,9.8130533]
[1746704205523,0.01212577,99555.0,99554.0,9.82243982]
[1746704208955,0.01212577,99555.0,99554.0,9.8130533]
[1746704209165,0.01212577,99555.0,99554.0,9.79428149]
[1746704209681,0.00212577,99555.0,99554.0,9.81306026]
[1746704210734,0.00212577,99555.0,99554.0,1.13343726]
[1746704211028,0.00212577,99555.0,99554.0,9.81306026]
[1746704214510,0.00212577,99555.0,99554.0,9.82245693]
[1746704214719,0.00212577,99555.0,99554.0,9.48245693]
[1746704219761,0.00212577,99555.0,99554.0,9.81306026]
[1746704220570,0.00212577,99555.0,99554.0,9.47306026]
[1746704221356,0.10190377,99555.0,99554.0,9.81306026]
[1746704224465,0.10190377,99555.0,99554.0,1.13343726]
[1746704224680,0.10190377,99555.0,99554.0,9.81306026]
[1746704229858,0.13290377,99555.0,99554.0,6.16464549]
[1746704230038,0.33379774,99555.0,99554.0,0.61040052]
[1746704230254,0.33379774,99555.0,99554.0,0.02905574]
[1746704230468,0.33379774,99555.0,99554.0,0.01027697]
[1746704230629,0.0423455,99547.0,99544.0,0.20091489]
[1746704230992,0.0323,99547.0,99546.0,0.55095739]
[1746704231174,0.0323,99547.0,99546.0,9.23058039]
[1746704231466,0.0323,99547.0,99546.0,9.25879038]
[1746704232441,0.0343,99547.0,99546.0,9.25979038]
[1746704233019,0.03420978,99547.0,99546.0,9.25979038]
[1746704233761,0.03720978,99547.0,99546.0,9.26079038]
[1746704234180,0.03720978,99547.0,99546.0,9.26677749]
[1746704234472,0.03720978,99547.0,99546.0,9.0658657]
[1746704234992,0.03720978,99547.0,99546.0,0.58715449]
[1746704235189,0.03720978,99547.0,99546.0,9.26677749]
[1746704236248,0.03720978,99547.0,99546.0,9.27192045]
[1746704237646,0.03720978,99547.0,99546.0,9.19471045]
[1746704239038,0.03720978,99547.0,99546.0,8.90817845]
[1746704239282,0.03720978,99547.0,99546.0,8.17636645]
[1746704239488,0.03720978,99547.0,99546.0,7.59935685]
[1746704241316,0.03720978,99547.0,99546.0,7.5993572]
[1746704241512,0.03724978,99547.0,99546.0,7.5993572]
[1746704241719,0.03724978,99547.0,99546.0,5.8221342]
[1746704242968,0.03724978,99547.0,99546.0,5.7859462]
[1746704243448,0.2381599,99547.0,99546.0,5.22715106]
[1746704243675,0.2381599,99547.0,99546.0,5.18090706]
[1746704243875,0.2381599,99547.0,99546.0,2.68523706]
[1746704244565,0.03724978,99547.0,99546.0,2.68523706]
[1746704245067,0.03724978,99547.0,99546.0,2.8861492]
[1746704245768,0.03724978,99547.0,99546.0,0.5822522]
[1746704245966,0.03724978,99547.0,99546.0,5.4501752]
[1746704251576,0.03724978,99547.0,99546.0,5.24673323]
[1746704251792,0.03724978,99547.0,99546.0,5.1101752]
[1746704256743,0.03724978,99547.0,99546.0,5.4501752]
[1746704261707,0.03724978,99547.0,99546.0,5.45011409]
[1746704265525,0.03724978,99547.0,99546.0,0.58219109]
[1746704265902,0.03724978,99547.0,99546.0,5.87735109]
[1746704267210,0.03724978,99547.0,99546.0,5.84618709]
[1746704267405,0.03724978,99547.0,99546.0,5.68031309]
[1746704267627,0.03724978,99547.0,99546.0,5.66150763]
[1746704268027,0.03724978,99547.0,99546.0,5.65216421]
[1746704268521,0.03724978,99547.0,99546.0,5.21027049]
[1746704272181,0.03724978,99547.0,99546.0,5.21027049]
[1746704274351,0.03724978,99547.0,99546.0,5.21968749]
[1746704276429,0.03724978,99547.0,99546.0,0.58229349]
[1746704276639,0.03724978,99547.0,99546.0,5.73972749]
[1746704277171,0.03724978,99547.0,99546.0,5.72089321]
[1746704277376,0.02074978,99547.0,99546.0,5.72089321]
[1746704277776,0.02074978,99547.0,99546.0,5.71147621]
[1746704278339,0.02074978,99547.0,99546.0,5.51056407]
[1746704279951,0.2216599,99547.0,99546.0,5.51056407]
[1746704280698,0.2216599,99547.0,99546.0,5.33464107]
[1746704281848,0.02074978,99547.0,99546.0,5.33464107]
[1746704282057,0.03574978,99547.0,99546.0,5.29845307]
[1746704283362,0.2366599,99547.0,99546.0,5.29845307]
[1746704285105,0.2216599,99547.0,99546.0,5.29845307]
[1746704287163,0.2216599,99547.0,99546.0,0.35313007]
[1746704287456,0.2216599,99547.0,99546.0,5.54573807]
[1746704288039,0.2216599,99547.0,99546.0,5.42913207]
[1746704289163,0.02074978,99547.0,99546.0,5.42913207]
[1746704290074,0.2216599,99547.0,99546.0,5.42913207]
[1746704290279,0.2216599,99547.0,99546.0,5.39696507]
[1746704290575,0.2216599,99547.0,99546.0,5.34871507]
[1746704292633,0.2216599,99547.0,99546.0,5.40098507]
[1746704293284,0.2216599,99547.0,99546.0,5.38791707]
[1746704293996,0.2216599,99547.0,99546.0,5.33966707]
[1746704294366,0.2216599,99547.0,99546.0,5.32358307]
[1746704294887,0.02074978,99547.0,99546.0,5.32358307]
[1746704296096,0.02078978,99547.0,99546.0,5.32358307]
[1746704296448,0.00508,99547.0,99546.0,5.32358307]
[1746704297448,0.00208,99547.0,99546.0,5.32258307]
[1746704297653,0.00408,99547.0,99546.0,5.32358307]
[1746704297831,0.20499012,99547.0,99546.0,5.32358307]
[1746704299050,0.00408,99547.0,99546.0,5.32358307]
[1746704299712,0.20499012,99547.0,99546.0,5.32358307]
[1746704305300,0.20499012,99547.0,99546.0,0.58413007]
[1746704305301,0.23609012,99547.0,99546.0,0.58413007]
[1746704305524,0.23609012,99547.0,99546.0,0.01313007]
[1746704305792,0.23609012,99547.0,99546.0,0.002]
[1746704307003,0.23609012,99547.0,99533.0,0.21098469]
[1746704307004,0.20093257,99536.0,99532.0,0.21098676]
[1746704307160,0.20093257,99536.0,99534.0,0.34]
[1746704307366,0.20093257,99536.0,99535.0,5.705671]
[1746704307554,0.20093257,99536.0,99535.0,5.724772]
[1746704307751,0.21591417,99545.0,99538.0,0.34]
[1746704307955,0.21591417,99545.0,99540.0,0.34]
[1746704307956,0.20092066,99542.0,99540.0,0.34]
[1746704308175,0.20092021,99542.0,99541.0,8.789947]
[1746704308381,0.20092021,99542.0,99541.0,8.792963]
[1746704308577,0.0100456,99546.0,99542.0,0.34]
[1746704308821,0.20091617,99544.0,99543.0,8.338353]
[1746704309254,0.21096197,99544.0,99542.0,8.729624]
[1746704309457,0.21096197,99544.0,99543.0,8.35843833]
[1746704309868,0.21096197,99544.0,99543.0,8.34436433]
[1746704310073,0.21296197,99544.0,99543.0,8.33531133]
[1746704310846,0.21296197,99544.0,99543.0,8.24985933]
[1746704311209,0.21596197,99544.0,99543.0,8.25085933]
[1746704311398,0.21596197,99544.0,99543.0,8.25607321]
[1746704311603,0.21596197,99544.0,99543.0,8.25507321]
[1746704312317,0.005,99544.0,99543.0,8.25507321]
[1746704312526,0.005,99544.0,99543.0,8.4559914]
[1746704312734,0.09990377,99555.0,99544.0,0.3827458]
[1746704312940,0.09990377,99555.0,99554.0,0.57359599]
[1746704313068,0.09990377,99555.0,99554.0,0.67426291]
[1746704313273,0.09990377,99555.0,99554.0,9.78145011]
[1746704313487,0.09990377,99555.0,99554.0,9.74875011]
[1746704314178,0.10090377,99555.0,99554.0,9.74875011]
[1746704314311,0.10090377,99555.0,99554.0,9.72118591]
[1746704316392,0.09390377,99555.0,99554.0,9.72118591]
[1746704316595,0.09390377,99555.0,99554.0,1.04156291]
[1746704316794,0.09390377,99555.0,99554.0,9.72686452]
[1746704318868,0.09390377,99555.0,99554.0,5.5802566]
[1746704323519,0.08694377,99555.0,99554.0,5.5802566]
[1746704325983,0.08694377,99555.0,99554.0,6.11376437]
[1746704326186,8e-05,99569.0,99564.0,0.55541666]
[1746704326398,8e-05,99569.0,99568.0,0.58680859]
[1746704326606,0.00012577,99569.0,99568.0,9.35069851]
[1746704326859,0.00012577,99569.0,99568.0,9.73569851]
[1746704327582,0.00012577,99569.0,99568.0,1.47437551]
[1746704327787,0.00012577,99569.0,99568.0,10.18689851]
[1746704327945,0.00012577,99569.0,99568.0,10.18789851]
[1746704328148,0.00012577,99569.0,99568.0,10.18889851]
[1746704329196,0.00012577,99569.0,99568.0,10.20766262]
[1746704329425,0.00012577,99569.0,99568.0,10.19116262]
[1746704330055,0.00012577,99569.0,99568.0,10.18042005]
[1746704332919,0.00016577,99569.0,99568.0,10.18042005]
[1746704340222,0.00016577,99569.0,99568.0,10.17885854]
[1746704340605,0.00016577,99569.0,99568.0,10.21035854]
[1746704341060,0.00016577,99569.0,99568.0,10.17885854]
[1746704341447,0.00016577,99569.0,99568.0,10.18390229]
[1746704345008,8e-05,99580.0,99574.0,0.54085564]
[1746704345225,8e-05,99580.0,99574.0,9.33186583]
[1746704345637,8e-05,99580.0,99574.0,9.35062994]
[1746704345852,8e-05,99580.0,99574.0,9.75062994]
[1746704347790,8e-05,99580.0,99574.0,1.07100694]
[1746704348067,8e-05,99580.0,99574.0,9.75062994]
[1746704356320,8e-05,99580.0,99574.0,9.74885533]
[1746704358658,8e-05,99580.0,99574.0,1.08377318]
[1746704358866,8e-05,99580.0,99574.0,9.77859618]
[1746704359763,8e-05,99580.0,99574.0,9.76339618]
[1746704360207,8e-05,99580.0,99574.0,9.76539618]
[1746704361443,8e-05,99580.0,99574.0,9.76739618]
[1746704362289,8e-05,99580.0,99574.0,9.75285533]
[1746704362686,8e-05,99580.0,99574.0,9.76739618]
[1746704367237,8e-05,99580.0,99574.0,9.79989618]
[1746704367706,8e-05,99580.0,99574.0,9.76739618]
[1746704369146,8e-05,99575.0,99574.0,9.79839618]
[1746704369706,8e-05,99575.0,99574.0,9.78259618]
[1746704370035,8e-05,99575.0,99574.0,9.79839618]
[1746704370401,8e-05,99575.0,99574.0,9.78259618]
[1746704370602,8e-05,99575.0,99574.0,9.76739618]
[1746704372083,8e-05,99575.0,99574.0,10.46739618]
[1746704372659,8e-05,99575.0,99574.0,10.49869618]
[1746704373160,8e-05,99575.0,99574.0,10.48289618]
[1746704373415,8e-05,99575.0,99574.0,10.91699618]
[1746704373588,4e-05,99581.0,99580.0,0.55538439]
[1746704373751,4e-05,99581.0,99580.0,9.33567431]
[1746704373948,4e-05,99581.0,99580.0,9.3629766]
[1746704374447,4e-05,99581.0,99580.0,9.7954766]
[1746704374674,4e-05,99581.0,99580.0,1.1158536]
[1746704374874,4e-05,99581.0,99580.0,9.7804766]
[1746704375042,4e-05,99581.0,99580.0,9.7639766]
[1746704375444,4e-05,99581.0,99580.0,9.7963766]
[1746704375647,4e-05,99581.0,99580.0,9.7973766]
[1746704375917,4e-05,99581.0,99580.0,9.8048403]
[1746704376166,4e-05,99581.0,99580.0,9.8028403]
[1746704376366,4e-05,99581.0,99580.0,9.8038403]
[1746704376517,4e-05,99581.0,99580.0,9.8048403]
[1746704376714,4e-05,99581.0,99580.0,10.4724403]
[1746704377230,8e-05,99581.0,99580.0,10.4724403]
[1746704377574,8e-05,99581.0,99580.0,10.8907403]
[1746704379120,8e-05,99581.0,99580.0,10.9064403]
[1746704379343,8e-05,99581.0,99580.0,10.9215403]
[1746704379543,8e-05,99581.0,99580.0,10.9064403]
[1746704380313,8e-05,99581.0,99580.0,10.87197619]
[1746704380540,8e-05,99581.0,99580.0,10.89077904]
[1746704385521,8e-05,99581.0,99580.0,2.21115604]
[1746704385724,8e-05,99581.0,99580.0,10.89077904]
[1746704394652,8e-05,99581.0,99580.0,10.6899355]
[1746704395155,8e-05,99581.0,99580.0,10.89077904]